Cogmind - Beta 17.1 @@@ ROGUE MODE // 2026.09.17 @ 04:13:43 Player: profwumbo Result: Destroyed by G-47 Trooper with Particle Gun Performance ------------- Evolutions (2) 1000 Regions Visited (3) 600 Robots Destroyed (25) 125 Value Destroyed (358) 358 Prototype IDs (0) 0 Alien Tech Used (0) 0 Bonus (0) 0 TOTAL SCORE: 2083 Bonus ------- None Cogmind --------- Core Integrity 0/550 Matter 167/300 Energy 85/100 System Corruption 0% Temperature Cool (19) Movement Flying (40) Location -8/Materials Parts ------- > --- POWER (1) -------- (None) > --- PROPULSION (4) --- Xenon Bombardment Thruster > --- UTILITY (4) ------ (None) > --- WEAPON (2) ------- Medium Laser > --- INVENTORY (5) ---- Authchip [Propulsion] Authchip [Device] Peak State ------------ > --- POWER ------------ (None) > --- PROPULSION ------- Xenon Bombardment Thruster Xenon Bombardment Thruster Xenon Bombardment Thruster > --- UTILITY ---------- Visual Processing Unit Improved Terrain Scanner Hacking Suite > --- WEAPON ----------- Proton Missile Launcher > --- INVENTORY -------- Flight Unit Xenon Bombardment Thruster Authchip [Propulsion] Authchip [Device] [Rating: 25] Favorites ----------- Power Light Ion Engine Engine Light Ion Engine Propulsion Flight Unit Leg Aluminum Leg Wheel Wheel Flight Unit Flight Unit Utility Heat Sink Device Heat Sink Storage Small Storage Unit Processor Visual Processing Unit Hackware Hacking Suite Weapon Assault Rifle Energy Gun Medium Laser Ballistic Gun Assault Rifle Launcher Proton Missile Launcher Build | -11 -10 -9 -8 ------- Run | Yrd Mat Mat Mat Slots Evolved 4 | . . 2 2 Power . | . . . . Propulsion 2 | . . 1 1 Utility 2 | . . 1 1 Weapon . | . . . . Parts Attached 35 | 7 13 3 12 Power 7 | 1 4 . 2 Engine 7 | 1 4 . 2 Core . | . . . . Reactor . | . . . . Propulsion 17 | 3 5 2 7 Treads . | . . . . Leg 2 | 2 . . . Wheel 5 | 1 3 . 1 Hover . | . . . . Flight 10 | . 2 2 6 Utility 6 | 1 4 1 . Device 3 | . 3 . . Storage 1 | 1 . . . Processor 1 | . . 1 . Hackware 1 | . 1 . . Protection . | . . . . Artifact . | . . . . Weapon 5 | 2 . . 3 Energy Gun 2 | 1 . . 1 Energy Cannon . | . . . . Ballistic Gun 1 | 1 . . . Ballistic Cannon . | . . . . Launcher 2 | . . . 2 Special Weapon . | . . . . Impact Weapon . | . . . . Slashing Weapon . | . . . . Piercing Weapon . | . . . . Special Melee Weapon . | . . . . Unidentified Prototypes . | . . . . Parts Lost 21 | . . . 21 Power 4 | . . . 4 Propulsion 10 | . . . 10 Utility 3 | . . . 3 Weapon 4 | . . . 4 Highest Loss Streak 21 | . . . 21 To Critical Strikes . | . . . . Average Backups 3 | 1 3 4 4 Power . | . 1 1 . Propulsion 1 | 1 2 1 1 Utility . | . . 2 2 Weapon . | . . . . Tool/Special . | . . . . Unused Backups 6 | . 5 . 1 Power . | . . . . Propulsion 1 | . 1 . . Utility 3 | . 2 . 1 Weapon 2 | . 2 . . Tool/Special . | . . . . Average Slot Usage (%) 86 | . 92 91 77 Engine 11 | . 14 11 7 Leg 1 | . 2 . . Wheel 4 | . 10 . . Flight 23 | . 15 33 29 Device 13 | . 17 11 8 Processor 3 | . . 3 9 Hackware 5 | . 2 11 8 Energy Gun 11 | . 13 11 7 Ballistic Gun 10 | . 14 11 6 Peak Build Rating 25 | 6 12 15 25 Average Rating 11 | 4 6 13 17 On Entrance 8 | . 6 12 15 Avg Prop Armor Cover (%) 5 | 9 . . 3 Naked Turns . | . . . . Heaviest Build 14 | 14 14 8 8 Greatest Support 20 | 10 20 12 20 Greatest Overweight (x) 2 | 1 1 . 2 Average Overweight (x) . | . . . . Largest Inventory Capacity 8 | 8 8 5 5 Average Capacity 5 | 7 5 5 5 Most Carried 5 | 3 5 5 5 Average Carried 3 | 2 3 4 4 Final Capacity 8 | 8 5 5 5 Final Carried 5 | 3 5 5 2 Class Distribution -------------------- 55% | Mutant 24% | Scavenger-Sprinter 20% | Scavenger-Mutant Dominant Class ---------------- Mutant | -10/Materials Scavenger-Mutant | -9/Materials Scavenger-Sprinter | -8/Materials Resources | -11 -10 -9 -8 ----------- Run | Yrd Mat Mat Mat Matter Collected 530 | 276 234 . 20 Remotely . | . . . . Salvage Created 846 | 100 595 90 61 Parts 50 | . 38 6 6 Haulers Intercepted 1 | . 1 . . Recyclers Shooed 3 | . 3 . . Parts Field Recycled . | . . . . Retrieved Matter . | . . . . Parts Self-Destructed . | . . . . Prevented . | . . . . Parts Restored . | . . . . Kills | -11 -10 -9 -8 ------- Run | Yrd Mat Mat Mat Combat Hostiles Destroyed 15 | . 9 2 4 Guns 14 | . 9 1 4 AOE 1 | . . 1 . Classes Destroyed 8 | 1 6 1 . Worker 2 | . 2 . . Tunneler 1 | . 1 . . Hauler 1 | . 1 . . Recycler 4 | 1 3 . . Operator 2 | . 2 . . Swarmer 10 | . 6 . 4 Grunt 4 | . 3 1 . Sentry 1 | . . 1 . Best Kill Streak 7 | 1 7 2 3 Combat Bots Only 6 | . 6 2 3 Max Kills in Single Turn 1 | 1 1 1 1 Gunslinging . | . . . . Exploded 1 | . . 1 . Melee . | . . . . Uniques/NPCs Destroyed . | . . . . Combat | -11 -10 -9 -8 -------- Run | Yrd Mat Mat Mat Hostile Shots Fired 265 | . 43 20 202 Missed 84 | . 8 7 69 Hits 181 | . 35 13 133 Projectile 181 | . 35 13 133 Critical Strikes 1 | . . . 1 Damage Taken 1758 | . 310 180 1268 Core 739 | . 138 42 559 Absorbed by Shields . | . . . . Core Remaining (%) 77 | 100 44 89 . Volleys Fired 60 | 2 41 4 13 Largest 2 | 2 2 2 2 Hottest 70 | 70 70 70 70 Shots Fired 111 | 4 82 8 17 Gun 111 | 4 82 8 17 Cannon . | . . . . Launcher . | . . . . Special . | . . . . Kinetic 51 | 2 41 4 4 Thermal 60 | 2 41 4 13 Explosive . | . . . . Electromagnetic . | . . . . Robot Hit Streak 11 | 3 9 10 11 Robot Miss Streak 4 | . 4 . 3 Penetration Max . | . . . . Secondary Targets 1 | . 1 . . Max Gunslinging Chain 1 | . 1 . . Shots Hit Robots 69 | 3 49 7 10 Core Hits 37 | 2 27 3 5 Critical Kills . | . . . . Critical Parts Destroyed . | . . . . Critical Strikes 3 | . 2 1 . Burn 3 | . 2 1 . Melee Attacks . | . . . . Impact . | . . . . Slashing . | . . . . Piercing . | . . . . Sneak Attacks . | . . . . Combat Hostiles . | . . . . Follow-up Attacks . | . . . . Damage Inflicted 1118 | 40 634 279 165 Guns 900 | 40 634 89 137 Cannons . | . . . . Explosions 190 | . . 190 . Melee . | . . . . Ramming 28 | . . . 28 Kinetic 395 | 27 291 39 38 Thermal 695 | 13 343 240 99 Explosive . | . . . . Electromagnetic . | . . . . Impact . | . . . . Slashing . | . . . . Piercing . | . . . . Highest Corruption . | . . . . Average Corruption . | . . . . Corruption Purged . | . . . . Corruption Blocked . | . . . . Overload Shots . | . . . . Overflow Damage . | . . . . Projectiles . | . . . . Explosions . | . . . . Melee . | . . . . Knockbacks . | . . . . Impact . | . . . . Kinetic . | . . . . Secondary . | . . . . Self-Inflicted Damage 12 | . . . 12 Shots . | . . . . Rammed 8 | . . . 8 Targets Rammed 8 | . . . 8 Kicked . | . . . . Crushed . | . . . . Highest Temperature 61 | 18 45 61 12 Average Temperature 20 | 10 15 37 4 Received Heat Transfer 342 | . 42 84 216 Siege Activations . | . . . . Martial Activations . | . . . . Shielding Activations . | . . . . Robots Disrupted . | . . . . Combat Hostiles . | . . . . Robots Corrupted . | . . . . Combat Hostiles . | . . . . Parts Fried . | . . . . Impact Corruptions . | . . . . Robots Melted . | . . . . Combat Hostiles . | . . . . Parts Melted 6 | . 3 3 . Heat Transferred 1802 | 37 1147 322 296 Parts Sabotaged . | . . . . Parts Stolen . | . . . . Parts Stripped . | . . . . Power Chain Reactions . | . . . . Alert | -11 -10 -9 -8 ------- Run | Yrd Mat Mat Mat Maximum Alert Level . | . . . . Low Security (%) 100 | 100 100 100 100 Level 1 . | . . . . Level 2 . | . . . . Level 3 . | . . . . Level 4 . | . . . . Level 5 . | . . . . High Security . | . . . . Max Security . | . . . . Peak Influence 173 | . 173 172 74 Initial 72 | . . 72 68 Average 52 | . 79 80 23 Influence Increases 635 | 5 339 160 131 Destroy 0b10 Robot/C 300 | . 180 40 80 Destroy 0b10 Robot/NC 50 | 5 45 . . Destroy Leader 62 | . 32 10 20 Successful Hack 8 | . 7 . 1 Disable Machine 15 | . . 15 . Destroy Structure 35 | . . 35 . Partial Spotted 60 | . 30 15 15 Lose Combat Pursuer 105 | . 45 45 15 Influence Decreases 585 | 5 168 169 243 Entered New Map 193 | . . 99 94 Time Decay 357 | 5 168 70 114 Lost Part 35 | . . . 35 Squads Dispatched 3 | . 2 . 1 Investigation 1 | . 1 . . Extermination . | . . . . Reinforcement 2 | . 1 . 1 Assault . | . . . . Garrison . | . . . . Intercept . | . . . . Searches Triggered . | . . . . Construction Impeded 1 | . . . 1 Haulers Reinforced . | . . . . Active Scanning Responses . | . . . . Cargo Convoy Interrupts . | . . . . Stealth | -11 -10 -9 -8 --------- Run | Yrd Mat Mat Mat Distress Signals 2 | . 1 . 1 Communications Jammed . | . . . . Distress Signals . | . . . . Times Spotted 42 | . 20 7 15 Peak Tracking Total 10 | . 7 4 10 Tactical Retreats 6 | . 3 2 1 Traps | -11 -10 -9 -8 ------- Run | Yrd Mat Mat Mat Traps Triggered 1 | . 1 . . Indirectly . | . . . . Trap Hack Attempts . | . . . . Triggered . | . . . . Disarmed . | . . . . Reprogrammed . | . . . . Reused . | . . . . Traps Extracted . | . . . . Installed . | . . . . Triggered . | . . . . Machines | -11 -10 -9 -8 ---------- Run | Yrd Mat Mat Mat Machines Disabled 1 | . . 1 . Max in Single Turn 1 | . . 1 . Machines Repaired . | . . . . Machines Dismantled . | . . . . Machines Sabotaged . | . . . . Overloaded Fab Kills . | . . . . Hacking | -11 -10 -9 -8 --------- Run | Yrd Mat Mat Mat Machines Accessed 6 | . 5 . 1 Terminals 4 | . 4 . . Fabricators . | . . . . Repair Stations . | . . . . Recycling Units 1 | . 1 . . Scanalyzers 1 | . . . 1 Garrison Access . | . . . . Total Hacks 20 | . 17 . 3 Successful 8 | . 5 . 3 Failed 12 | . 12 . . Catastrophic 3 | . 3 . . Database Lockouts . | . . . . Manual 6 | . 6 . . Terminals 13 | . 13 . . Fabricators . | . . . . Repair Stations . | . . . . Recycling Units 4 | . 4 . . Scanalyzers 3 | . . . 3 Garrison Access . | . . . . Terminal Hacks 1 | . 1 . . Branch Access Points 1 | . 1 . . Fabricator Hacks . | . . . . Repair Station Hacks . | . . . . Recycling Unit Hacks 3 | . 3 . . Recycle Component 1 | . 1 . . Process 1 | . 1 . . Retrieve Matter 1 | . 1 . . Scanalyzer 3 | . . . 3 Insert Component 1 | . . . 1 Analyze 1 | . . . 1 Retrieve Study 1 | . . . 1 Garrison Access Hacks . | . . . . Unauthorized Hacks 1 | . 1 . . Terminals 1 | . 1 . . Assimilate 1 | . 1 . . Fabricators . | . . . . Repair Stations . | . . . . Recycling Units . | . . . . Scanalyzers . | . . . . Garrison Access . | . . . . Data Cores Recovered . | . . . . Used . | . . . . Hacking Detections 3 | . 3 . . Full Trace Events 3 | . 3 . . Feedback Events . | . . . . Feedback Blocked . | . . . . Robot Schematics Acquired . | . . . . Robots Built . | . . . . Authchips . | . . . . Time . | . . . . Total Robot Build Rating . | . . . . Part Schematics Acquired 1 | . . . 1 Parts Built . | . . . . Authchips . | . . . . Time . | . . . . Total Part Build Rating . | . . . . Part Studies Acquired 1 | . . . 1 Parts Repaired . | . . . . Time . | . . . . Parts Recycled 1 | . 1 . . Recycled Matter 77 | . 77 . . Retrieved Matter 77 | . 77 . . Retrieved Components . | . . . . Parts Scanalyzed 1 | . . . 1 Part Schematics Acquired 1 | . . . 1 Parts Damaged . | . . . . Bothacking | -11 -10 -9 -8 ------------ Run | Yrd Mat Mat Mat Used RIF Installer . | . . . . Robots Hacked . | . . . . Non-combat . | . . . . Combat . | . . . . Robot Hacks Applied . | . . . . Relay Couplers Released . | . . . . Fabnet Peak Effective % . | . . . . Robots Rewired . | . . . . Allies Hacked . | . . . . Hacks Repelled . | . . . . Allies | -11 -10 -9 -8 -------- Run | Yrd Mat Mat Mat Total Allies . | . . . . Largest Group . | . . . . Highest-Rated Group . | . . . . Highest-Rated Ally . | . . . . Total Orders . | . . . . Ally Attacks . | . . . . Total Damage . | . . . . Kills . | . . . . Allies Corrupted . | . . . . Allies Melted . | . . . . Intel | -11 -10 -9 -8 ------- Run | Yrd Mat Mat Mat Active Infowar (turns) 512 | . 28 144 340 Optics 385 | . . 45 340 Terrain 488 | . 28 144 316 Robot Analysis Total . | . . . . Derelict Logs Recovered . | . . . . Drone Launches . | . . . . Drone Recoveries . | . . . . Exploration | -11 -10 -9 -8 ------------- Run | Yrd Mat Mat Mat Turns Passed 1087 | 124 462 144 357 Spaces Moved 930 | 69 450 219 192 Core 11 | 5 . . 6 Treads . | . . . . Legs 74 | 50 24 . . Wheels 126 | 14 94 . 18 Hover . | . . . . Flight 719 | . 332 219 168 Fastest Speed 28 | 50 37 34 28 Average Speed 51 | 153 50 34 37 Slowest Speed 190 | 190 120 34 150 Overloaded Moves . | . . . . Propulsion Burnouts . | . . . . Robots Hopped 11 | . . 4 7 Potential Cave-ins . | . . . . Cave-ins Triggered . | . . . . Exploration Rate (%) 24 | 5 48 25 19 Regions Visited 3 Branch Regions . Pre-discovered Areas . | . . . . Known Exits Taken . | . . . . Unknown Exits Taken 3 | 1 1 1 . Scrap Searched . | . . . . Spaces Dug . | . . . . Terrain Destroyed 38 | . . 38 . Melee . | . . . . Projectile . | . . . . AOE 38 | . . 38 . Terrain Rammed . | . . . . Walls Destroyed . | . . . . Machines Disabled . | . . . . Actions | -11 -10 -9 -8 --------- Run | Yrd Mat Mat Mat Total 1409 | 80 607 273 449 Wait 330 | . 65 49 216 Move 907 | 68 449 210 180 Hop 9 | . . 4 5 Pick Up 21 | 3 14 1 3 Fast Attach 21 | 6 5 1 9 Attach 10 | . 3 1 6 Detach 6 | . 6 . . Swap 17 | 1 8 3 5 Drop 20 | . 16 . 4 Fire 60 | 2 41 4 13 Melee . | . . . . Ram 8 | . . . 8 Kick . | . . . . Crush . | . . . . Escape Stasis . | . . . . Rewire . | . . . . Trap . | . . . . Miscellaneous . | . . . . Route ------- -11/Scrapyard -10/Materials (discovered 5 exits: [*Mat x2] / Min x2 / [*Sub]) -9/Materials -8/Materials History --------- Turn | Location | Event 13 | -11/Scrapyard | Discovered new exit (range 16) 125 | -11/Scrapyard | Entered Materials 356 | -10/Materials | Build established: Mutant 372 | -10/Materials | Discovered new exit (range 12) 506 | -10/Materials | Discovered new exit (range 8) 548 | -10/Materials | Core integrity fell below 50% 569 | -10/Materials | Discovered new exit (range 15) 585 | -10/Materials | Identified exit to Mines 587 | -10/Materials | Entered another Materials area 587 | -9/Materials | Evolved 2 slots: Propulsion x1, Utility x1 723 | -9/Materials | Discovered new exit (range 10) 731 | -9/Materials | Entered another Materials area 731 | -8/Materials | Evolved 2 slots: Propulsion x1, Utility x1 1040 | -8/Materials | Core integrity fell below 50% 1052 | -8/Materials | Core integrity fell below 20% 1088 | -8/Materials | Destroyed by G-47 Trooper with Particle Gun Last Messages --------------- Matter Pump comes online. Hacking Suite destroyed. Acquired Wheel. R-06 Scavenger collects Sml. Matter Pod. R-06 Scavenger destroyed. R-06 Scavenger collects Flight Unit. Imp. Terrain Scanner destroyed. U-05 Engineer works on Matter Pump. R-06 Scavenger collects Lgt. Ion Engine. R-06 Scavenger collects Com. Wheel. Acquired Med. Laser. S-10 Pest destroyed. Wheel destroyed. S-10 Pest destroyed. R-06 Scavenger collects Lgt. Ion Engine. R-06 Scavenger collects Flight Unit. Flight Unit destroyed. Visual Processing Unit destroyed. R-06 Scavenger collects Lgt. Assault Rifle. U-05 Engineer completes Matter Pump. Map ----- +----------------------------------------------------+ | ????????#??##????#???############????????????????? | | ??????????#??######### # "" !#????????????????? | | ??????##??#???#// # # ""S #????????????????? | | ????#?????##??#// # # "" ##???????????????? | | ????????##??#?#/ + + #?????#??????????? | | ???????#???#??# # # ##???????????????? | | ??????#?#???### # # #?#??????????????? | | ????????????### = !# ########????????????????? | | ??????????????######## #?????####??????????????? | | ??????????????#??????# #??#?????#??????????????? | | ?????????########?#??# #??????#????????????????? | | ???????#?# ####### #??#??#?#???????????????? | | ????????## #?#?#??????#????????????? | | ?????????# #???#???????????????????? | | ????????## #?????#??#??????????????? | | ?????????# #################?????????????????? | | ?????????## ###??# #?????????????????? | | ??????????# #??#?# %*"""g""" #?????????????????? | | ?##???????# ###??# = """ """ ##????????????????? | | ?# ######## #????# """ """ #?????????????????? | | ?# ## #????# %[Y #?????????????????? | | ?# * ## #????# % #????????????#????? | | ?# ! ## ##?#?# =%r #???????????#?????? | | ?# # ##########g############??????#????? | | ?# """ # #????????????? | | ?# """""%+ @ #?#??????????? | | ?# """""=# ] """ #????????????? | | ?# """"" #